fUSD/lending_fUSD_20240424
["ID","MTS","AMOUNT","RATE_DAILY","PERIOD"]
[323405560,1713971494458,-941.61,0.00012602,2]
[323405561,1713971494467,-3933.71,0.00012602,2]
[323405562,1713971494477,-2747.31,0.00012602,2]
[323405563,1713971494487,-1364.05,0.00012602,2]
[323405564,1713971494497,-1069.73,0.00012602,2]
[323405565,1713971494506,-2109.48,0.00012602,2]
[323405566,1713971494515,-338.21,0.00012602,2]
[323405567,1713971494525,-500.0,0.00012602,2]
[323405568,1713971494536,-500.0,0.00012602,2]
[323405569,1713971494545,-500.0,0.00012602,2]
[323405570,1713971494555,-5584.64,0.00012602,2]
[323405571,1713971494565,-6056.82,0.00012602,2]
[323405572,1713971494575,-1076.15,0.00012602,2]
[323405573,1713971494585,-11108.74,0.00012602,2]
[323405574,1713971494595,-9374.05,0.00012602,2]
[323405575,1713971494605,-4688.69,0.00012602,2]
[323405576,1713971494614,-2897.45,0.00012602,2]
[323405577,1713971494623,-500.0,0.00012602,2]
[323405578,1713971494633,-33558.3,0.00012602,2]
[323405579,1713971494644,-500.0,0.00012602,2]
[323405580,1713971494654,-2104.85,0.00012602,2]
[323405581,1713971494664,-897.93,0.00012602,2]
[323405582,1713971494674,-2539.44,0.00012602,2]
[323405583,1713971494683,-2229.71,0.00012602,2]
[323405584,1713971494693,-7410.74,0.00012602,2]
[323405585,1713971494702,-500.0,0.00012602,2]
[323405586,1713971494712,-500.0,0.00012602,2]
[323405587,1713971494722,-560.7,0.00012602,2]
[323405588,1713971494731,-500.0,0.00012602,2]
[323405589,1713971494741,-2218.82,0.00012602,2]
[323405590,1713971494751,-1376.33,0.00012602,2]
[323405591,1713971494760,-1396.88,0.00012602,2]
[323405592,1713971494770,-4637.36,0.00012602,2]
[323405593,1713971494781,-3302.52,0.00012602,2]
[323405594,1713971494790,-500.0,0.00012602,2]
[323405595,1713971494800,-2517.66,0.00012602,2]
[323405596,1713971494809,-500.0,0.00012602,2]
[323405597,1713971494819,-6389.72,0.00012602,2]
[323405598,1713971494829,-2232.11,0.00012602,2]
[323405599,1713971494839,-500.0,0.00012602,2]
[323405600,1713971494849,-2969.59,0.00012602,2]
[323405601,1713971494859,-500.0,0.00012602,2]
[323405602,1713971494869,-500.0,0.00012602,2]
[323405603,1713971494878,-500.0,0.00012602,2]
[323405604,1713971494888,-500.0,0.00012602,2]
[323405605,1713971494897,-504.99803128,0.00012602,2]
[323405606,1713971494907,-500.0,0.00012602,2]
[323405607,1713971494917,-3068.67,0.00012602,2]
[323405608,1713971494927,-500.0,0.00012602,2]
[323405609,1713971494937,-712.55,0.00012602,2]
[323405610,1713971494947,-4703.73,0.00012602,2]
[323405611,1713971494957,-1633.89,0.00012602,2]
[323405612,1713971494966,-6824.58,0.00012602,2]
[323405613,1713971494975,-500.0,0.00012602,2]
[323405614,1713971494985,-4774.22,0.00012602,2]
[323405615,1713971494994,-500.0,0.00012602,2]
[323405616,1713971495004,-500.0,0.00012602,2]
[323405617,1713971495013,-500.0,0.00012602,2]
[323405618,1713971495023,-500.0,0.00012602,2]
[323405619,1713971495033,-6983.95,0.00012602,2]
[323405620,1713971495043,-684.58,0.00012602,2]
[323405621,1713971495052,-500.0,0.00012602,2]
[323405622,1713971495061,-240.06490498,0.00012602,2]
[323405623,1713971495071,-512.56,0.00012602,2]
[323405624,1713971495081,-5260.46,0.00012602,2]
[323405625,1713971495090,-500.0,0.00012602,2]
[323405626,1713971495100,-500.0,0.00012602,2]
[323405627,1713971495110,-3704.19,0.00012602,2]
[323405628,1713971495120,-1402.14,0.00012602,2]
[323405629,1713971495130,-500.0,0.00012602,2]
[323405630,1713971495140,-5398.19,0.00012602,2]
[323405631,1713971495150,-16232.98,0.00012602,2]
[323405632,1713971495161,-500.0,0.00012602,2]
[323405633,1713971495171,-500.0,0.00012602,2]
[323405634,1713971495181,-500.0,0.00012602,2]
[323405635,1713971495191,-538.93,0.00012602,2]
[323405636,1713971495201,-500.0,0.00012602,2]
[323405637,1713971495211,-500.0,0.00012602,2]
[323405638,1713971495221,-9207.42,0.00012602,2]
[323405639,1713971495231,-500.0,0.00012602,2]
[323405640,1713971495242,-500.0,0.00012602,2]
[323405641,1713971495252,-547.36,0.00012602,2]
[323405642,1713971495262,-500.0,0.00012602,2]
[323405643,1713971495272,-5109.87,0.00012602,2]
[323405644,1713971495285,-500.0,0.00012602,2]
[323405645,1713971495295,-937.55,0.00012602,2]
[323405646,1713971495305,-6048.32,0.00012602,2]
[323405647,1713971495315,-500.0,0.00012602,2]
[323405648,1713971495325,-13720.59,0.00012602,2]
[323405649,1713971495341,-500.0,0.00012602,2]
[323405650,1713971495352,-500.0,0.00012602,2]
[323405651,1713971495362,-1598.35,0.00012602,2]
[323405652,1713971495371,-500.0,0.00012602,2]
[323405653,1713971495383,-6656.92803186,0.00012666,2]
[323405654,1713971495393,-5404.04345652,0.00012739,2]
[323405655,1713971495403,-150.0,0.0001276,2]
[323405656,1713971495413,-155.0,0.000128,2]
[323405657,1713971495423,-500.0,0.00012814,2]
[323405658,1713971495433,-500.0,0.00012823,2]
[323405659,1713971495443,-500.0,0.00012832,2]
[323405660,1713971495453,-500.0,0.00012841,2]
[323405661,1713971495463,-500.0,0.00012849,2]
[323405662,1713971495473,-500.0,0.00012849,2]
[323405663,1713971495482,-151.30550023,0.00012849,2]
[323405664,1713971495491,-500.0,0.00012849,2]
[323405665,1713971495502,-500.0,0.00012849,2]
[323405666,1713971495511,-500.0,0.00012849,2]
[323405667,1713971495522,-500.0,0.00012849,2]
[323405668,1713971495534,-498.84989153,0.00012849,2]
[323405669,1713971495544,-500.0,0.00012849,2]
[323405670,1713971495553,-487.41615886,0.00012849,2]
[323405671,1713971495563,-389.24,0.00012849,2]
[323405672,1713971495572,-500.0,0.00012849,2]
[323405673,1713971495583,-500.0,0.00012849,2]
[323405674,1713971495593,-500.0,0.00012849,2]
[323405675,1713971495603,-213.20488681,0.00012849,2]
[323405676,1713971495612,-500.0,0.00012849,2]
[323405677,1713971495622,-500.0,0.00012849,2]
[323405678,1713971495632,-298.39339498,0.00012849,2]
[323405679,1713971495642,-247.23576745,0.00012849,2]
[323405680,1713971495651,-500.0,0.00012849,2]
[323405681,1713971495662,-500.0,0.00012849,2]
[323405682,1713971495671,-500.0,0.00012849,2]
[323405683,1713971495681,-500.0,0.00012849,2]
[323405684,1713971495692,-500.0,0.00012849,2]
[323405685,1713971495701,-500.0,0.00012849,2]
[323405686,1713971495711,-500.0,0.00012849,2]
[323405687,1713971495721,-500.0,0.00012849,2]
[323405688,1713971495731,-500.0,0.00012849,2]
[323405689,1713971495741,-500.0,0.00012849,2]
[323405690,1713971495752,-500.0,0.00012849,2]
[323405691,1713971495762,-616.97,0.00012849,2]
[323405692,1713971495771,-2149.49,0.00012849,2]
[323405693,1713971495781,-500.0,0.00012849,2]
[323405694,1713971495791,-500.0,0.00012849,2]
[323405695,1713971495801,-864.92,0.00012849,2]
[323405696,1713971495811,-551.78,0.00012849,2]
[323405697,1713971495820,-753.61,0.00012849,2]
[323405698,1713971495830,-500.0,0.00012849,2]
[323405699,1713971495840,-500.0,0.00012849,2]
[323405700,1713971495850,-500.0,0.00012849,2]
[323405701,1713971495859,-1204.76,0.00012849,2]
[323405702,1713971495869,-500.0,0.00012849,2]
[323405703,1713971495878,-500.0,0.00012849,2]
[323405704,1713971495887,-577.99290916,0.00012849,2]
[323405705,1713971495897,-1135.56,0.00012849,2]
[323405706,1713971495906,-500.0,0.00012849,2]
[323405707,1713971495915,-1026.59,0.00012849,2]
[323405708,1713971495925,-994.4,0.00012849,2]
[323405709,1713971495935,-2351.75,0.00012849,2]
[323405710,1713971495944,-500.0,0.00012849,2]
[323405711,1713971495953,-1102.09,0.00012849,2]
[323405712,1713971495963,-500.0,0.00012849,2]
[323405713,1713971495972,-587.11,0.00012849,2]
[323405714,1713971495982,-2311.54,0.00012849,2]
[323405715,1713971495992,-526.78,0.00012849,2]
[323405716,1713971496001,-1216.72,0.00012849,2]
[323405717,1713971496011,-500.0,0.00012849,2]
[323405718,1713971496021,-2221.75,0.00012849,2]
[323405719,1713971496032,-500.0,0.00012849,2]
[323405720,1713971496042,-500.0,0.00012849,2]
[323405721,1713971496052,-2764.59,0.00012849,2]
[323405722,1713971496062,-987.48,0.00012849,2]
[323405723,1713971496071,-500.0,0.00012849,2]
[323405724,1713971496082,-681.02,0.00012849,2]
[323405725,1713971496092,-1196.22,0.00012849,2]
[323405726,1713971496101,-2281.61,0.00012849,2]
[323405727,1713971496111,-500.0,0.00012849,2]
[323405728,1713971496124,-1888.63,0.00012849,2]
[323405729,1713971496135,-500.0,0.00012849,2]
[323405730,1713971496145,-500.0,0.0001285,2]
[323405731,1713971496155,-500.0,0.00012858,2]
[323405732,1713971496166,-10179.02535004,0.00012861,2]
[323405733,1713971496178,-1000.0,0.00012861,2]
[323405734,1713971496188,-500.0,0.00012867,2]
[323405735,1713971496200,-1204.70419248,0.0001287,2]
[323405736,1713971496209,-3000.0,0.0001287,2]
[323405737,1713971496220,-203.79893697,0.00012874,2]
[323405738,1713971496231,-264.01498696,0.00012874,2]
[323405739,1713971496242,-4348.49,0.00012874,2]
[323405740,1713971496252,-5347.72,0.00012874,2]
[323405741,1713971496263,-15810.62,0.00012874,2]
[323405742,1713971496274,-9139.58,0.00012874,2]
[323405743,1713971496286,-5784.5,0.00012874,2]
[323405744,1713971496297,-970.41,0.00012874,2]
[323405745,1713971496308,-4757.89,0.00012874,2]
[323405746,1713971496318,-843.23,0.00012874,2]
[323405747,1713971496328,-7178.12,0.00012874,2]
[323405748,1713971496342,-1302.1,0.00012874,2]
[323405749,1713971496352,-876.38,0.00012874,2]
[323405750,1713971496362,-3767.06,0.00012874,2]
[323405751,1713971496375,-6249.85,0.00012874,2]
[323405752,1713971496384,-4729.55,0.00012874,2]
[323405753,1713971496395,-7690.41,0.00012874,2]
[323405754,1713971496404,-4370.07,0.00012874,2]
[323405755,1713971496416,-3925.91,0.00012874,2]
[323405756,1713971496426,-6389.34,0.00012874,2]
[323405757,1713971496436,-1806.16,0.00012874,2]
[323405758,1713971496445,-7632.03,0.00012874,2]
[323405759,1713971496455,-15067.8,0.00012874,2]
[323405760,1713971496465,-2615.85,0.00012874,2]
[323405761,1713971496476,-20096.18,0.00012874,2]
[323405762,1713971496486,-8210.15,0.00012874,2]
[323405763,1713971496496,-6711.82,0.00012874,2]
[323405764,1713971496506,-15655.38,0.00012874,2]
[323405765,1713971496515,-3758.87,0.00012874,2]
[323405766,1713971496526,-8286.69,0.00012874,2]
[323405767,1713971496536,-5569.95,0.00012874,2]
[323405768,1713971496546,-11483.13,0.00012874,2]
[323405769,1713971496632,-15875.61,0.00012874,2]
[323405770,1713971496641,-6030.73,0.00012874,2]
[323405771,1713971496651,-4130.43,0.00012874,2]
[323405772,1713971496661,-558.46,0.00012874,2]
[323405773,1713971496670,-500.0,0.00012875,2]
[323405774,1713971496679,-473.74,0.00012875,2]
[323405775,1713971496689,-500.0,0.00012875,2]
[323405776,1713971496698,-500.0,0.00012875,2]
[323405777,1713971496708,-519.11149762,0.00012875,2]
[323405778,1713971496718,-157.19,0.00012875,2]
[323405779,1713971496727,-500.0,0.00012875,2]
[323405780,1713971496736,-500.0,0.00012875,2]
[323405781,1713971496745,-159.34,0.00012875,2]
[323405782,1713971496755,-500.0,0.00012875,2]
[323405783,1713971496765,-248.11,0.00012875,2]
[323405784,1713971496774,-500.0,0.00012875,2]
[323405785,1713971496784,-500.0,0.00012875,2]
[323405786,1713971496793,-500.0,0.00012875,2]
[323405787,1713971496802,-500.0,0.00012875,2]
[323405788,1713971496812,-414.94,0.00012875,2]
[323405789,1713971496823,-630.7,0.00012875,2]
[323405790,1713971496835,-500.0,0.00012875,2]
[323405791,1713971496844,-500.0,0.00012875,2]
[323405792,1713971496888,-574.28,0.00012875,2]
[323405793,1713971496899,-437.51,0.00012875,2]
[323405794,1713971496910,-227.0664573,0.00012875,2]
[323405795,1713971496920,-840.09,0.00012875,2]
[323405796,1713971496929,-776.48,0.00012875,2]
[323405797,1713971496939,-500.0,0.00012875,2]
[323405798,1713971496950,-500.0,0.00012875,2]
[323405799,1713971496960,-500.0,0.00012875,2]
[323405800,1713971496970,-500.0,0.00012875,2]
[323405801,1713971496979,-500.0,0.00012875,2]
[323405802,1713971496989,-500.0,0.00012875,2]
[323405803,1713971496999,-500.0,0.00012875,2]
[323405804,1713971497010,-500.0,0.00012875,2]
[323405805,1713971497020,-500.0,0.00012875,2]
[323405806,1713971497030,-500.0,0.00012875,2]
[323405807,1713971497041,-1172.99,0.00012875,2]
[323405808,1713971497051,-1195.92,0.00012875,2]
[323405809,1713971497062,-535.27,0.00012875,2]
[323405810,1713971497072,-500.0,0.00012875,2]
[323405811,1713971497083,-500.0,0.00012875,2]
[323405812,1713971497093,-500.0,0.00012875,2]
[323405813,1713971497103,-354.62,0.00012875,2]
[323405814,1713971497114,-500.0,0.00012875,2]
[323405815,1713971497124,-258.84,0.00012875,2]
[323405816,1713971497134,-500.0,0.00012875,2]
[323405817,1713971497145,-500.0,0.00012875,2]
[323405818,1713971497155,-500.0,0.00012875,2]
[323405819,1713971497165,-500.0,0.00012875,2]
[323405820,1713971497175,-500.0,0.00012875,2]
[323405821,1713971497185,-500.0,0.00012875,2]
[323405822,1713971497195,-500.0,0.00012875,2]
[323405823,1713971497206,-500.0,0.00012875,2]
[323405824,1713971497216,-500.0,0.00012875,2]
[323405825,1713971497226,-500.0,0.00012875,2]
[323405826,1713971497236,-500.0,0.00012875,2]
[323405827,1713971497246,-500.0,0.00012875,2]
[323405828,1713971497257,-500.0,0.00012875,2]
[323405829,1713971497268,-500.0,0.00012875,2]
[323405830,1713971497278,-592.76,0.00012875,2]
[323405831,1713971497290,-365.98,0.00012875,2]
[323405832,1713971497300,-500.0,0.00012875,2]
[323405833,1713971497310,-500.0,0.00012875,2]
[323405834,1713971497321,-500.0,0.00012875,2]
[323405835,1713971497334,-500.0,0.00012875,2]
[323405836,1713971497344,-1027.63,0.00012875,2]
[323405837,1713971497353,-500.0,0.00012875,2]
[323405838,1713971497363,-500.0,0.00012875,2]
[323405839,1713971497375,-500.0,0.00012875,2]
[323405840,1713971497385,-762.98,0.00012875,2]
[323405841,1713971497395,-500.0,0.00012875,2]
[323405842,1713971497406,-500.0,0.00012875,2]
[323405843,1713971497418,-500.0,0.00012875,2]
[323405844,1713971497429,-885.68,0.00012875,2]
[323405845,1713971497440,-1123.38,0.00012875,2]
[323405846,1713971497450,-519.32,0.00012875,2]
[323405847,1713971497461,-500.0,0.00012875,2]
[323405848,1713971497472,-500.0,0.00012875,2]
[323405849,1713971497482,-646.14,0.00012875,2]
[323405850,1713971497493,-503.26844107,0.00012876,2]
[323405851,1713971497503,-500.0,0.00012876,2]
[323405852,1713971497513,-632.41,0.00012876,2]
[323405853,1713971497524,-938.45,0.00012876,2]
[323405854,1713971497536,-572.16,0.00012876,2]
[323405855,1713971497546,-500.0,0.00012876,2]
[323405856,1713971497557,-500.0,0.00012876,2]
[323405857,1713971497568,-500.0,0.00012876,2]
[323405858,1713971497579,-500.0,0.00012876,2]
[323405859,1713971497589,-1522.84,0.00012876,2]
[323405860,1713971497600,-500.0,0.00012876,2]
[323405861,1713971497610,-500.0,0.00012876,2]
[323405862,1713971497621,-600.48,0.00012876,2]
[323405863,1713971497631,-500.0,0.00012876,2]
[323405864,1713971497641,-500.0,0.00012876,2]
[323405865,1713971497652,-388.32,0.00012876,2]
[323405866,1713971497662,-500.0,0.00012876,2]
[323405867,1713971497672,-703.95,0.00012876,2]
[323405868,1713971497683,-500.0,0.00012876,2]
[323405869,1713971497693,-566.51360977,0.00012876,2]
[323405870,1713971497704,-500.0,0.00012876,2]
[323405871,1713971497715,-500.0,0.00012876,2]
[323405872,1713971497725,-750.77,0.00012876,2]
[323405873,1713971497735,-500.0,0.00012876,2]
[323405874,1713971497746,-571.84,0.00012876,2]
[323405875,1713971497755,-801.18,0.00012876,2]
[323405876,1713971497766,-500.0,0.00012876,2]
[323405877,1713971497776,-500.0,0.00012876,2]
[323405878,1713971497787,-500.0,0.00012876,2]
[323405879,1713971497796,-571.87,0.00012876,2]
[323405880,1713971497805,-757.62,0.00012876,2]
[323405881,1713971497815,-1868.55,0.00012876,2]
[323405882,1713971497825,-3047.41,0.00012876,2]
[323405883,1713971497836,-960.72,0.00012876,2]
[323405884,1713971497846,-738.26,0.00012876,2]
[323405885,1713971497857,-500.0,0.00012876,2]
[323405886,1713971497869,-632.55,0.00012876,2]
[323405887,1713971497880,-500.0,0.00012876,2]
[323405888,1713971497890,-375.62,0.00012876,2]
[323405889,1713971497900,-500.0,0.00012876,2]
[323405890,1713971497910,-500.0,0.00012876,2]
[323405891,1713971497920,-1231.81,0.00012876,2]
[323405892,1713971497930,-4414.65,0.00012876,2]
[323405893,1713971497941,-500.0,0.00012876,2]
[323405894,1713971497951,-1512.32,0.00012876,2]
[323405895,1713971497961,-500.0,0.00012876,2]
[323405896,1713971497971,-500.0,0.00012876,2]
[323405897,1713971497980,-1160.08,0.00012876,2]
[323405898,1713971497990,-1014.83,0.00012876,2]
[323405899,1713971497999,-500.0,0.00012876,2]
[323405900,1713971498009,-500.0,0.00012876,2]
[323405901,1713971498019,-500.0,0.00012876,2]
[323405902,1713971498028,-500.0,0.00012876,2]
[323405903,1713971498041,-554.94,0.00012876,2]
[323405904,1713971498050,-981.42,0.00012876,2]
[323405905,1713971498059,-1266.64,0.00012876,2]
[323405906,1713971498069,-500.0,0.00012876,2]
[323405907,1713971498079,-2618.92,0.00012876,2]
[323405908,1713971498088,-500.0,0.00012876,2]
[323405909,1713971498098,-834.92,0.00012876,2]
[323405910,1713971498108,-346.42,0.00012876,2]
[323405911,1713971498118,-928.86,0.00012876,2]
[323405912,1713971498127,-500.0,0.00012876,2]
[323405913,1713971498137,-2388.92,0.00012876,2]
[323405914,1713971498146,-421.95,0.00012876,2]
[323405915,1713971498155,-500.0,0.00012876,2]
[323405916,1713971498164,-500.0,0.00012876,2]
[323405917,1713971498174,-500.0,0.00012876,2]
[323405918,1713971498183,-583.43,0.00012876,2]
[323405919,1713971498193,-1814.7,0.00012876,2]
[323405920,1713971498202,-4566.79,0.00012876,2]
[323405921,1713971498211,-500.0,0.00012876,2]
[323405922,1713971498220,-500.0,0.00012876,2]
[323405923,1713971498229,-500.0,0.00012876,2]
[323405924,1713971498238,-500.0,0.00012876,2]
[323405925,1713971498247,-1008.59,0.00012876,2]
[323405926,1713971498257,-508.52109523,0.00012876,2]
[323405927,1713971498266,-657.96,0.00012876,2]
[323405928,1713971498275,-500.0,0.00012876,2]
[323405929,1713971498286,-1435.34,0.00012876,2]
[323405930,1713971498295,-165.31,0.00012876,2]
[323405931,1713971498304,-2224.61,0.00012876,2]
[323405932,1713971498315,-4364.47,0.00012876,2]
[323405933,1713971498324,-500.0,0.00012876,2]
[323405934,1713971498336,-620.67,0.00012876,2]
[323405935,1713971498346,-500.0,0.00012876,2]
[323405936,1713971498355,-1798.89,0.00012876,2]
[323405937,1713971498365,-753.37,0.00012876,2]
[323405938,1713971498375,-500.0,0.00012876,2]
[323405939,1713971498384,-500.0,0.00012876,2]
[323405940,1713971498393,-1172.56,0.00012876,2]
[323405941,1713971498402,-1549.65,0.00012876,2]
[323405942,1713971498414,-4633.7,0.00012876,2]
[323405943,1713971498425,-500.0,0.00012876,2]
[323405944,1713971498434,-2231.62,0.00012876,2]
[323405945,1713971498444,-500.0,0.00012876,2]
[323405946,1713971498453,-500.0,0.00012876,2]
[323405947,1713971498462,-640.91,0.00012876,2]
[323405948,1713971498472,-5023.36847739,0.00012876,2]
[323405949,1713971498482,-425.66177434,0.00012876,2]
[323405950,1713971498492,-569.69,0.00012876,2]
[323405951,1713971498502,-500.0,0.00012876,2]
[323405952,1713971498511,-3857.51,0.00012876,2]
[323405953,1713971498521,-500.0,0.00012876,2]
[323405954,1713971498531,-3186.18,0.00012876,2]
[323405955,1713971498543,-880.86,0.00012876,2]
[323405956,1713971498552,-1023.52,0.00012876,2]
[323405957,1713971498562,-556.37,0.00012876,2]
[323405958,1713971498572,-1038.57,0.00012876,2]
[323405959,1713971498581,-1051.25,0.00012876,2]
[323405960,1713971498591,-500.0,0.00012876,2]
[323405961,1713971498601,-500.0,0.00012876,2]
[323405962,1713971498611,-4170.17,0.00012876,2]
[323405963,1713971498621,-500.0,0.00012876,2]
[323405964,1713971498631,-712.12,0.00012876,2]
[323405965,1713971498640,-811.13,0.00012876,2]
[323405966,1713971498650,-1516.0,0.00012876,2]
[323405967,1713971498660,-500.0,0.00012876,2]
[323405968,1713971498669,-500.0,0.00012876,2]
[323405969,1713971498679,-500.0,0.00012876,2]
[323405970,1713971498688,-2572.9,0.00012876,2]
[323405971,1713971498698,-500.0,0.00012876,2]
[323405972,1713971498708,-500.0,0.00012876,2]
[323405973,1713971498718,-500.0,0.00012876,2]
[323405974,1713971498728,-403.89,0.00012876,2]
[323405975,1713971498737,-1704.77,0.00012876,2]
[323405976,1713971498747,-2085.19,0.00012876,2]
[323405977,1713971498756,-500.0,0.00012876,2]
[323405978,1713971498767,-688.21,0.00012876,2]
[323405979,1713971498777,-1611.38,0.00012876,2]
[323405980,1713971498790,-500.0,0.00012876,2]
[323405981,1713971498802,-500.0,0.00012876,2]
[323405982,1713971498812,-1822.99,0.00012876,2]
[323405983,1713971498823,-4346.21,0.00012876,2]
[323405984,1713971498833,-4561.56,0.00012876,2]
[323405985,1713971498843,-500.0,0.00012876,2]
[323405986,1713971498854,-1172.2,0.00012876,2]
[323405987,1713971498864,-11758.78,0.00012876,2]
[323405988,1713971498874,-877.15,0.00012876,2]
[323405989,1713971498885,-500.0,0.00012876,2]
[323405990,1713971498894,-3844.95,0.00012876,2]
[323405991,1713971498904,-1396.93,0.00012876,2]
[323405992,1713971498914,-500.0,0.00012876,2]
[323405993,1713971498924,-24057.34,0.00012876,2]
[323405994,1713971498934,-500.0,0.00012876,2]
[323405995,1713971498943,-570.53,0.00012876,2]
[323405996,1713971498954,-500.0,0.00012876,2]
[323405997,1713971498963,-946.89,0.00012876,2]
[323405998,1713971498973,-500.0,0.00012876,2]
[323405999,1713971498983,-22807.46,0.00012876,2]
[323406000,1713971498992,-20856.91,0.00012876,2]
[323406001,1713971499002,-500.0,0.00012876,2]
[323406002,1713971499012,-7901.37,0.00012876,2]
[323406003,1713971499021,-5859.12,0.00012876,2]
[323406004,1713971499031,-3371.32,0.00012876,2]
[323406005,1713971499042,-500.0,0.00012876,2]
[323406006,1713971499052,-8235.63,0.00012876,2]
[323406007,1713971499061,-1402.36,0.00012876,2]
[323406008,1713971499071,-1022.8,0.00012876,2]
[323406009,1713971499080,-500.0,0.00012876,2]
[323406010,1713971499090,-2169.73,0.00012876,2]
[323406011,1713971499099,-3366.61,0.00012876,2]
[323406012,1713971499109,-11271.93,0.00012876,2]
[323406013,1713971499118,-500.0,0.00012876,2]
[323406014,1713971499128,-500.0,0.00012876,2]
[323406015,1713971499137,-500.0,0.00012876,2]
[323406016,1713971499147,-3149.99,0.00012876,2]
[323406017,1713971499157,-700.26,0.00012876,2]
[323406018,1713971499167,-1077.52,0.00012876,2]
[323406019,1713971499177,-500.0,0.00012876,2]
[323406020,1713971499186,-500.0,0.00012876,2]
[323406021,1713971499196,-500.0,0.00012876,2]
[323406022,1713971499205,-320.39,0.00012876,2]
[323406023,1713971499214,-13896.41,0.00012876,2]
[323406024,1713971499224,-500.0,0.00012876,2]
[323406025,1713971499233,-2645.0,0.00012876,2]
[323406026,1713971499243,-500.0,0.00012876,2]
[323406027,1713971499252,-500.0,0.00012876,2]
[323406028,1713971499262,-500.0,0.00012876,2]
[323406029,1713971499271,-794.05,0.00012876,2]
[323406030,1713971499281,-500.0,0.00012876,2]
[323406031,1713971499293,-500.0,0.00012876,2]
[323406032,1713971499303,-5136.7,0.00012876,2]
[323406033,1713971499312,-2121.92,0.00012876,2]
[323406034,1713971499322,-500.0,0.00012876,2]
[323406035,1713971499334,-558.44,0.00012876,2]
[323406036,1713971499343,-500.0,0.00012876,2]
[323406037,1713971499353,-1006.55,0.00012876,2]
[323406038,1713971499362,-500.0,0.00012876,2]
[323406039,1713971499374,-500.0,0.00012876,2]
[323406040,1713971499383,-500.0,0.00012876,2]
[323406041,1713971499393,-555.9,0.00012876,2]
[323406042,1713971499402,-500.0,0.00012876,2]
[323406043,1713971499413,-3852.42,0.00012876,2]
[323406044,1713971499423,-1567.09,0.00012876,2]
[323406045,1713971499433,-500.0,0.00012876,2]
[323406046,1713971499443,-2728.08,0.00012876,2]
[323406047,1713971499452,-1445.4,0.00012876,2]
[323406048,1713971499462,-1239.48,0.00012876,2]
[323406049,1713971499472,-500.0,0.00012876,2]
[323406050,1713971499481,-4557.06,0.00012876,2]
[323406051,1713971499491,-500.0,0.00012876,2]
[323406052,1713971499501,-3462.5,0.00012876,2]
[323406053,1713971499511,-1128.75,0.00012876,2]
[323406054,1713971499521,-1371.31,0.00012876,2]
[323406055,1713971499532,-4632.78,0.00012876,2]
[323406056,1713971499543,-4574.78,0.00012876,2]
[323406057,1713971499554,-500.0,0.00012876,2]
[323406058,1713971499564,-4829.3,0.00012876,2]
[323406059,1713971499573,-9101.65,0.00012876,2]